fUST/lending_fUST_20250612
["ID","MTS","AMOUNT","RATE_DAILY","PERIOD"]
[365459878,1749682239357,-153.0,0.00022665,2]
[365459879,1749682239369,-153.0,0.00022665,2]
[365459880,1749682239379,-153.0,0.00022665,2]
[365459881,1749682239389,-153.0,0.00022665,2]
[365459882,1749682239399,-153.0,0.00022665,2]
[365459883,1749682239410,-153.0,0.00022665,2]
[365459884,1749682239419,-153.0,0.00022665,2]
[365459885,1749682239429,-5000.0,0.00022665,2]
[365459886,1749682239439,-168.0,0.00022668,2]
[365459887,1749682239448,-546.64,0.00022676,4]
[365459888,1749682239458,-778.34,0.00022676,4]
[365459889,1749682239469,-547.35,0.00022676,4]
[365459890,1749682239478,-460.0,0.00022676,4]
[365459891,1749682239488,-460.0,0.00022676,4]
[365459892,1749682239498,-1053.7,0.00022676,4]
[365459893,1749682239507,-460.0,0.00022676,4]
[365459894,1749682239516,-824.54,0.00022676,4]
[365459895,1749682239526,-555.09,0.00022677,4]
[365459896,1749682239536,-460.0,0.00022677,4]
[365459897,1749682239545,-460.0,0.00022677,4]
[365459898,1749682239555,-460.0,0.00022677,4]
[365459899,1749682239565,-460.0,0.00022677,4]
[365459900,1749682239575,-933.79,0.00022677,4]
[365459901,1749682239584,-460.0,0.00022677,4]
[365459902,1749682239594,-907.97,0.00022677,4]
[365459903,1749682239603,-256.14684753,0.00022717,4]
[365459913,1749682239751,-523.08,0.00022717,2]
[365459915,1749682239762,-191.1,0.00022717,6]
[365459917,1749682239772,-2608.15267546,0.00022728,7]
[365459919,1749682239781,-558.02629121,0.00022729,2]
[365459921,1749682239790,-500.0,0.00022729,2]
[365459923,1749682239805,-505.25960172,0.00022729,2]
[365459925,1749682239815,-500.0,0.00022729,2]
[365459927,1749682239824,-500.0,0.00022729,2]
[365459929,1749682239834,-500.0,0.00022729,2]
[365459931,1749682239843,-503.13665459,0.00022729,2]
[365459933,1749682239853,-153.0,0.00022767,2]
[365459935,1749682239865,-153.0,0.00022767,2]
[365459937,1749682239876,-306.0,0.00022767,2]
[365459939,1749682239885,-2608.15267546,0.00022831,8]
[365459941,1749682239894,-883.16629982,0.00022832,2]
[365459943,1749682239904,-685.52607922,0.00022842,2]
[365459945,1749682239913,-191.1,0.00022845,6]
[365459947,1749682239926,-600.0,0.00022848,2]
[365459949,1749682239936,-153.0,0.00022849,2]
[365459951,1749682239945,-161.381195,0.00022849,2]
[365459953,1749682239955,-357.0740979,0.00022849,2]
[365459955,1749682239965,-573.3540349,0.00022849,2]
[365459957,1749682239974,-153.0,0.00022849,2]
[365459959,1749682239984,-156.5232587,0.00022849,2]
[365459961,1749682239994,-153.0,0.00022849,2]
[365459963,1749682240003,-153.0,0.00022849,2]
[365459965,1749682240013,-319.1604193,0.00022849,2]
[365459967,1749682240022,-217.1484714,0.00022849,2]
[365459969,1749682240032,-153.0,0.00022849,2]
[365459972,1749682240043,-1195.8619859,0.00022849,2]
[365459974,1749682240052,-153.0,0.00022849,2]
[365459976,1749682240062,-309.5761506,0.00022849,2]
[365459978,1749682240072,-153.0,0.00022849,2]
[365459980,1749682240081,-153.0,0.00022849,2]
[365459982,1749682240091,-153.0,0.00022849,2]
[365459984,1749682240100,-153.0,0.00022849,2]
[365459986,1749682240111,-160.0,0.00022863,3]
[365459988,1749682240121,-168.0,0.00022884,2]
[365459990,1749682240130,-3479.39,0.00022889,2]
[365459992,1749682240140,-445.5784035,0.00022899,2]
[365459994,1749682240150,-2608.15267546,0.00022934,8]
[365459996,1749682240159,-5000.0,0.00022935,2]
[365459998,1749682240169,-215.0738,0.00022938,2]
[365460000,1749682240179,-21640.33447235,0.00022949,2]
[365460002,1749682240190,-546.64,0.0002295,4]
[365460004,1749682240199,-778.34,0.0002295,4]
[365460006,1749682240209,-547.35,0.0002295,4]
[365460008,1749682240219,-252.36,0.0002295,4]
[365460009,1749682240229,-460.0,0.0002295,4]
[365460010,1749682240239,-500.0,0.0002295,2]
[365460011,1749682240248,-1053.7,0.0002295,4]
[365460012,1749682240259,-460.0,0.0002295,4]
[365460013,1749682240269,-824.54,0.0002295,4]
[365460014,1749682240278,-500.0,0.0002295,3]
[365460015,1749682240288,-555.09,0.00022951,4]
[365460016,1749682240298,-460.0,0.00022951,4]
[365460017,1749682240307,-460.0,0.00022951,4]
[365460018,1749682240318,-460.0,0.00022951,4]
[365460019,1749682240328,-460.0,0.00022951,4]
[365460020,1749682240337,-933.79,0.00022951,4]
[365460021,1749682240347,-428.12,0.00022951,4]
[365460022,1749682240356,-907.97,0.00022951,4]
[365460023,1749682240370,-263.56352876,0.00022973,2]
[365460024,1749682240379,-191.1,0.00022974,6]
[365460025,1749682240389,-5000.0,0.00022991,2]
[365460026,1749682240398,-523.08,0.00022991,2]
[365460027,1749682240408,-8000.0,0.00022998,2]
[365460028,1749682240416,-1561.340192,0.00022998,2]
[365460029,1749682240426,-219346.94972784,0.00023,20]
[365460040,1749682240519,-279.68724084,0.00023,20]
[365460042,1749682240529,-3.551481,0.00023,10]
[365460044,1749682240541,-147.448519,0.00023,10]
[365460046,1749682240551,-151.0,0.00023,7]
[365460048,1749682240560,-151.0,0.00023,7]
[365460050,1749682240570,-232.181356,0.00023,7]
[365460052,1749682240579,-151.0,0.00023,7]
[365460054,1749682240588,-397.49225036,0.00023,2]
[365460530,1749682245704,-241.50774964,0.00023,2]
[365460532,1749682245714,-1361.01576916,0.00023038,8]
[365461596,1749683114753,165.730837,0.00013699,2]
[365461657,1749683431894,-592.91890633,0.000189,2]
[365461709,1749683432407,-243.89815023,0.00019989,2]
[365461711,1749683432418,-29.30184977,0.00019989,2]
[365461713,1749683432427,-300.0,0.00020088,2]
[365461715,1749683432436,-431.64533189,0.00020089,2]
[365461718,1749683432447,-14293.25875921,0.00020089,2]
[365462739,1749683445962,-885.29069365,0.00020089,2]
[365463363,1749684329710,163.191088,0.00013699,2]
[365463379,1749684543395,300.0,0.00017999,2]
[365463380,1749684544544,-173.52088538,0.00018,2]
[365463381,1749684546799,-222.25790411,0.00018,2]
[365463386,1749684603213,300.0,0.00017999,2]
[365463423,1749684632128,-890.49550595,0.00018,2]
[365463427,1749684632155,-4737.39643018,0.00018,2]
[365463438,1749684632254,-24507.11268735,0.00018,2]
[365463440,1749684632264,-623.78796396,0.000189,2]
[365463442,1749684632274,-172.0,0.00018932,3]
[365463443,1749684632283,-8739.7131263,0.000194,2]
[365463444,1749684632293,-4635.0,0.000195,2]
[365463445,1749684632302,-420.0,0.00019639,2]
[365463447,1749684632312,-173.082128,0.0001985,2]
[365463449,1749684632321,-1517.32243035,0.0002,2]
[365463450,1749684632330,-1109.52767583,0.0002,2]
[365463451,1749684632339,-3520.71523773,0.0002,2]
[365463452,1749684632349,-3520.71523769,0.0002,2]
[365463453,1749684632358,-3520.71523769,0.0002,2]
[365463454,1749684632369,-3520.71523769,0.0002,2]
[365463455,1749684632378,-3520.71523769,0.0002,2]
[365463456,1749684632388,-3520.71523769,0.0002,2]
[365463457,1749684632397,-3520.71523769,0.00020141,2]
[365463458,1749684632407,-163.191088,0.00020187,2]
[365463459,1749684632416,-3520.71523769,0.00020348,3]
[365463460,1749684632425,-3520.71523769,0.00020555,3]
[365463461,1749684632435,-3520.71523769,0.00020762,3]
[365463462,1749684632445,-821.09,0.00020768,2]
[365463463,1749684632454,-510.76856179,0.00020799,2]
[365463464,1749684632463,-348.10542095,0.00020896,2]
[365463465,1749684632473,-460.872832,0.00020896,2]
[365463466,1749684632482,-500.0,0.00020896,2]
[365463467,1749684632491,-500.0,0.00020896,2]
[365463468,1749684632501,-180.65155971,0.00020896,2]
[365463469,1749684632511,-500.0,0.00020896,2]
[365463470,1749684632520,-500.0,0.00020896,2]
[365463471,1749684632530,-500.0,0.00020896,2]
[365463472,1749684632539,-500.0,0.00020896,2]
[365463473,1749684632548,-500.0,0.00020896,2]
[365463474,1749684632558,-500.0,0.00020896,2]
[365463475,1749684632567,-500.0,0.00020896,2]
[365463476,1749684632576,-500.0,0.00020896,2]
[365463477,1749684632586,-500.0,0.00020896,2]
[365463478,1749684632595,-500.0,0.00020896,2]
[365463479,1749684632604,-500.0,0.00020896,2]
[365463480,1749684632613,-500.0,0.00020896,2]
[365463481,1749684632622,-600.0,0.00020896,2]
[365463482,1749684632632,-999.92556039,0.00020899,2]
[365463483,1749684632641,-275.75,0.00020899,2]
[365463484,1749684632651,-3520.71523769,0.00020969,4]
[365463485,1749684632660,-493.38,0.00021166,10]
[365463486,1749684632669,-537.92762173,0.00021172,2]
[365463487,1749684632680,-3520.71523769,0.00021176,4]
[365463488,1749684632690,-802.14,0.00021259,3]
[365463489,1749684632699,-546.6,0.00021269,4]
[365463490,1749684632708,-542.45,0.00021269,4]
[365463491,1749684632718,-665.35,0.00021269,4]
[365463492,1749684632727,-460.0,0.00021269,4]
[365463493,1749684632736,-219.72,0.00021269,4]
[365463494,1749684632746,-460.0,0.00021269,4]
[365463495,1749684632755,-442.16,0.00021269,4]
[365463496,1749684632764,-460.0,0.00021269,4]
[365463497,1749684632773,-460.0,0.00021269,4]
[365463498,1749684632783,-460.0,0.00021269,4]
[365463499,1749684632792,-460.0,0.00021269,4]
[365463500,1749684632801,-460.0,0.00021269,4]
[365463501,1749684632810,-1177.89,0.00021269,4]
[365463502,1749684632820,-922.53,0.00021269,4]
[365463503,1749684632829,-508.57,0.00021269,4]
[365463504,1749684632838,-460.0,0.00021269,4]
[365463505,1749684632848,-489.91,0.00021272,4]
[365463506,1749684632858,-1000.0,0.00021272,4]
[365463507,1749684632872,-460.0,0.00021272,4]
[365463508,1749684632881,-473.88,0.00021272,4]
[365463509,1749684632891,-460.0,0.00021272,4]
[365463510,1749684632901,-460.0,0.00021272,4]
[365463511,1749684632910,-506.29,0.00021272,4]
[365463512,1749684632920,-460.0,0.00021272,4]
[365463513,1749684632931,-460.0,0.00021272,4]
[365463514,1749684632941,-460.0,0.00021272,4]
[365463515,1749684632951,-460.0,0.00021272,4]
[365463516,1749684632961,-460.0,0.00021272,4]
[365463517,1749684632971,-460.0,0.00021272,4]
[365463518,1749684632980,-460.0,0.00021272,4]
[365463519,1749684632990,-460.0,0.00021272,4]
[365463520,1749684632999,-460.0,0.00021272,4]
[365463521,1749684633009,-460.0,0.00021272,4]
[365463522,1749684633019,-460.0,0.00021272,4]
[365463523,1749684633031,-460.0,0.00021272,4]
[365463524,1749684633047,-1135.9,0.00021272,4]
[365463525,1749684633058,-460.0,0.00021272,4]
[365463526,1749684633069,-460.0,0.00021273,4]
[365463527,1749684633079,-509.31,0.00021273,2]
[365463528,1749684633089,-460.0,0.00021273,4]
[365463529,1749684633099,-915.76,0.00021273,4]
[365463530,1749684633108,-460.0,0.00021273,4]
[365463531,1749684633121,-510.76856177,0.00021377,2]
[365463532,1749684633131,-3520.71523769,0.00021383,5]
[365463533,1749684633141,-587.0,0.00021428,2]
[365463534,1749684633151,-748.62,0.0002149,3]
[365463535,1749684633161,-267.37,0.0002149,3]
[365463536,1749684633171,-4600.0,0.000215,2]
[365463537,1749684633180,-546.6,0.00021543,4]
[365463538,1749684633189,-542.45,0.00021543,4]
[365463539,1749684633199,-665.35,0.00021543,4]
[365463540,1749684633208,-460.0,0.00021543,4]
[365463541,1749684633217,-460.0,0.00021543,4]
[365463542,1749684633226,-460.0,0.00021543,4]
[365463543,1749684633235,-460.0,0.00021543,4]
[365463544,1749684633245,-460.0,0.00021543,4]
[365463545,1749684633255,-1177.89,0.00021543,4]
[365463546,1749684633268,-922.53,0.00021543,4]
[365463547,1749684633278,-508.57,0.00021543,4]
[365463548,1749684633287,-460.0,0.00021543,4]
[365463549,1749684633297,-198.0,0.00021543,4]
[365463550,1749684633306,-489.91,0.00021546,4]
[365463551,1749684633316,-256.14684753,0.00021546,4]
[365463552,1749684633325,-506.88,0.00021546,4]
[365463553,1749684633335,-460.0,0.00021546,4]
[365463554,1749684633344,-460.0,0.00021546,4]
[365463555,1749684633353,-460.0,0.00021546,4]
[365463556,1749684633363,-514.45069459,0.00021546,4]
[365463557,1749684633374,-460.0,0.00021546,4]
[365463558,1749684633383,-460.0,0.00021546,4]
[365463559,1749684633392,-460.0,0.00021546,4]
[365463560,1749684633402,-460.0,0.00021546,4]
[365463561,1749684633411,-460.0,0.00021546,4]
[365463562,1749684633420,-460.0,0.00021546,4]
[365463563,1749684633429,-468.8,0.00021546,4]
[365463564,1749684633439,-460.0,0.00021546,4]
[365463565,1749684633448,-1135.9,0.00021546,4]
[365463566,1749684633458,-460.0,0.00021546,4]
[365463567,1749684633467,-509.31,0.00021547,2]
[365463568,1749684633605,-915.76,0.00021547,4]
[365463569,1749684633617,-460.0,0.00021547,4]
[365463570,1749684633626,-229.71724145,0.00021568,2]
[365463571,1749684633635,-160.0,0.00021568,2]
[365463572,1749684633645,-3520.71523769,0.0002159,5]
[365463573,1749684633655,-537.92762173,0.00021607,2]
[365463574,1749684633664,-160.0,0.00021614,2]
[365463575,1749684633674,-160.0,0.00021614,2]
[365463576,1749684633683,-500.0,0.00021689,2]
[365463577,1749684633692,-501.63539255,0.00021689,2]
[365463578,1749684633701,-306.7585254,0.00021753,2]
[365463579,1749684633711,-3520.71523769,0.00021797,6]
[365463580,1749684633720,-546.6,0.00021817,4]
[365463581,1749684633729,-542.45,0.00021817,4]
[365463582,1749684633738,-665.35,0.00021817,4]
[365463583,1749684633747,-460.0,0.00021817,4]
[365463584,1749684633758,-608.54838517,0.00021817,4]
[365463585,1749684633768,-460.0,0.00021817,4]
[365463586,1749684633777,-460.0,0.00021817,4]
[365463587,1749684633786,-1177.89,0.00021817,4]
[365463588,1749684633796,-922.53,0.00021817,4]
[365463589,1749684633805,-508.57,0.00021817,4]
[365463590,1749684633815,-460.0,0.00021817,4]
[365463591,1749684633825,-489.91,0.0002182,4]
[365463592,1749684633834,-460.0,0.0002182,4]
[365463593,1749684633843,-460.0,0.0002182,4]
[365463594,1749684633852,-460.0,0.0002182,4]
[365463595,1749684633862,-460.0,0.0002182,4]
[365463596,1749684633874,-460.0,0.0002182,4]
[365463597,1749684633884,-1135.9,0.0002182,4]
[365463598,1749684633893,-460.0,0.0002182,4]
[365463599,1749684633903,-509.31,0.00021821,2]
[365463600,1749684633914,-915.76,0.00021821,4]
[365463601,1749684633923,-460.0,0.00021821,4]
[365463602,1749684633932,-510.76856177,0.00021955,2]
[365463603,1749684633946,-162.91,0.00021974,3]
[365463604,1749684633956,-488.76,0.00021974,3]
[365463605,1749684633965,-325.83,0.00021984,3]
[365463606,1749684633975,-164.0,0.00022,2]
[365463607,1749684633984,-165.0,0.00022,2]
[365463608,1749684633994,-1538.20803739,0.00022003,6]
[365463609,1749684634068,-262.60356982,0.00022003,6]
[365463632,1749684638287,-9420.83303451,0.0002,2]
[365463633,1749684638297,-500.0,0.00020896,2]
[365463634,1749684638306,-500.0,0.00020896,2]
[365463635,1749684638316,-500.0,0.00020896,2]
[365463636,1749684638325,-500.0,0.00020896,2]
[365463637,1749684638334,-250.0,0.00020896,2]
[365463638,1749684638344,-460.0,0.00021269,4]
[365463639,1749684638354,-622.58,0.00021269,4]
[365463640,1749684638363,-460.0,0.00021269,4]
[365463641,1749684638373,-460.0,0.00021543,4]
[365463642,1749684638382,-622.58,0.00021543,4]
[365463643,1749684638391,-963.0,0.00021573,2]
[365463644,1749684638400,-622.58,0.00021817,4]
[365463645,1749684638410,-1719.90363048,0.00022003,6]
[365463646,1749684638419,-160.0,0.00022025,2]
[365463647,1749684638428,-835.03886221,0.00022025,2]
[365463648,1749684638437,-213.16534259,0.00022025,2]
[365463649,1749684638447,-844.64040732,0.00022025,2]
[365463650,1749684638456,-424.19973472,0.00022025,2]
[365463651,1749684638465,-160.0,0.00022025,2]
[365463652,1749684638474,-153.0,0.00022027,2]
[365463653,1749684638483,-153.0,0.00022027,2]
[365463654,1749684638493,-153.0,0.00022027,2]
[365463655,1749684638502,-160.0,0.0002203,3]
[365463656,1749684638511,-537.92762173,0.00022041,2]
[365463657,1749684638521,-546.6,0.00022091,4]
[365463658,1749684638531,-665.35,0.00022091,4]
[365463659,1749684638540,-460.0,0.00022091,4]
[365463660,1749684638549,-460.0,0.00022091,4]
[365463661,1749684638559,-1177.89,0.00022091,4]
[365463662,1749684638568,-922.53,0.00022091,4]
[365463663,1749684638577,-508.57,0.00022091,4]
[365463664,1749684638586,-622.58,0.00022091,4]
[365463665,1749684638595,-489.91,0.00022094,4]
[365463666,1749684638604,-460.0,0.00022094,4]
[365463667,1749684638613,-460.0,0.00022094,4]
[365463668,1749684638623,-460.0,0.00022094,4]
[365463669,1749684638632,-460.0,0.00022094,4]
[365463670,1749684638641,-1135.9,0.00022094,4]
[365463671,1749684638650,-460.0,0.00022094,4]
[365463672,1749684638659,-509.31,0.00022095,2]
[365463673,1749684638668,-915.76,0.00022095,4]
[365463674,1749684638677,-460.0,0.00022095,4]
[365463675,1749684638686,-2923.330026,0.000221,2]
[365463676,1749684638695,-653.0,0.00022106,2]
[365463677,1749684638704,-2160.0,0.00022106,2]
[365463678,1749684638713,-541.511,0.00022106,2]
[365463679,1749684638721,-207.4,0.00022132,2]
[365463680,1749684638730,-5000.0,0.00022132,2]
[365463681,1749684638739,-1688.0,0.00022132,2]
[365463682,1749684638748,-4512.37218656,0.00022132,2]
[365463683,1749684638757,-417.14724398,0.00022132,2]
[365463684,1749684638766,-165.45494643,0.000222,69]
[365463685,1749684638775,-165.45494643,0.000222,69]
[365463686,1749684638784,-3520.71523769,0.0002221,6]
[365463687,1749684638793,-546.6,0.00022365,4]
[365463688,1749684638804,-665.35,0.00022365,4]
[365463689,1749684638813,-252.36,0.00022365,4]
[365463690,1749684638822,-460.0,0.00022365,4]
[365463691,1749684638831,-1177.89,0.00022365,4]
[365463692,1749684638841,-922.53,0.00022365,4]
[365463693,1749684638850,-508.57,0.00022365,4]
[365463694,1749684638859,-622.58,0.00022365,4]
[365463695,1749684638873,-489.91,0.00022368,4]
[365463696,1749684638883,-460.0,0.00022368,4]
[365463697,1749684638893,-460.0,0.00022368,4]
[365463698,1749684638902,-460.0,0.00022368,4]
[365463699,1749684638912,-460.0,0.00022368,4]
[365463700,1749684638921,-1135.9,0.00022368,4]
[365463701,1749684638930,-460.0,0.00022368,4]
[365463702,1749684638939,-509.31,0.00022369,2]
[365463703,1749684638948,-915.76,0.00022369,4]
[365463704,1749684638958,-456.33,0.00022369,4]
[365463705,1749684638967,-168.0,0.00022414,2]
[365463706,1749684638977,-3520.71523769,0.00022417,7]
[365463707,1749684638986,-321.2851614,0.00022466,2]
[365463708,1749684638995,-396.7250733,0.00022466,2]
[365463709,1749684639005,-621.4269331,0.00022466,2]
[365463710,1749684639014,-537.92762173,0.00022476,2]
[365463711,1749684639024,-3349.2,0.000225,7]
[365463712,1749684639033,-510.76856177,0.00022533,2]
[365463713,1749684639042,-38215.63461642,0.0002254,2]
[365463714,1749684639052,-1444.989799,0.0002254,3]
[365463715,1749684639062,-160.0,0.00022585,4]
[365463716,1749684639071,-203.7,0.00022593,6]
[365463717,1749684639080,-22242.08248186,0.000226,2]
[365463718,1749684639090,-5532.31066992,0.000226,5]
[365463719,1749684639099,-151.0,0.000226,7]
[365463720,1749684639108,-500.0,0.00022623,2]
[365463721,1749684639117,-500.0,0.00022623,2]
[365463722,1749684639127,-160.0,0.00022623,2]
[365463723,1749684639136,-3520.71523769,0.00022624,7]
[365463724,1749684639145,-546.6,0.00022639,4]
[365463725,1749684639155,-665.35,0.00022639,4]
[365463726,1749684639164,-460.0,0.00022639,4]
[365463727,1749684639173,-1177.89,0.00022639,4]
[365463728,1749684639182,-922.53,0.00022639,4]
[365463729,1749684639191,-508.57,0.00022639,4]
[365463730,1749684639201,-622.58,0.00022639,4]
[365463731,1749684639210,-489.91,0.00022642,4]
[365463732,1749684639219,-460.0,0.00022642,4]
[365463733,1749684639228,-460.0,0.00022642,4]
[365463734,1749684639237,-460.0,0.00022642,4]
[365463735,1749684639246,-460.0,0.00022642,4]
[365463736,1749684639256,-1135.9,0.00022642,4]
[365463737,1749684639265,-460.0,0.00022642,4]
[365463738,1749684639274,-509.31,0.00022643,2]
[365463739,1749684639282,-915.76,0.00022643,4]
[365463740,1749684639291,-1642.18,0.00022656,2]
[365463741,1749684639300,-153.0,0.00022672,2]
[365463742,1749684639309,-153.0,0.00022672,2]
[365463743,1749684639318,-153.0,0.00022672,2]
[365463744,1749684639327,-153.0,0.00022672,2]
[365463745,1749684639336,-153.0,0.00022672,2]
[365463746,1749684639345,-153.0,0.00022672,2]
[365463747,1749684639355,-153.0,0.00022672,2]
[365463748,1749684639364,-153.0,0.00022672,2]
[365463749,1749684639374,-153.0,0.00022672,2]
[365463750,1749684639383,-153.0,0.00022672,2]
[365463751,1749684639392,-153.0,0.00022672,2]
[365463752,1749684639401,-153.0,0.00022672,2]
[365463753,1749684639410,-153.0,0.00022672,2]
[365463754,1749684639419,-153.0,0.00022672,2]
[365463755,1749684639429,-153.0,0.00022672,2]
[365463756,1749684639438,-153.0,0.00022672,2]
[365463757,1749684639447,-153.0,0.00022672,2]
[365463758,1749684639456,-153.0,0.00022672,2]
[365463759,1749684639466,-153.0,0.00022672,2]
[365463760,1749684639475,-153.0,0.00022672,2]
[365463761,1749684639484,-153.0,0.00022672,2]
[365463762,1749684639493,-153.0,0.00022672,2]
[365463763,1749684639502,-153.0,0.00022672,2]
[365463764,1749684639511,-153.0,0.00022672,2]
[365463765,1749684639520,-153.0,0.00022672,2]
[365463766,1749684639529,-153.0,0.00022672,2]
[365463767,1749684639538,-153.0,0.00022672,2]
[365463768,1749684639548,-153.0,0.00022672,2]
[365463769,1749684639557,-263.56352876,0.00022673,2]
[365463770,1749684639566,-153.0,0.00022673,2]
[365463771,1749684639576,-5000.0,0.0002268,2]
[365463772,1749684639585,-182.61696098,0.00022685,2]
[365463773,1749684639594,-182.61696098,0.00022685,2]
[365463774,1749684639603,-213.16534259,0.00022693,7]
[365463775,1749684639612,-987.06,0.000227,7]
[365463776,1749684639622,-171734.02,0.000227,7]
[365463777,1749684639631,-151.0,0.000227,7]
[365463778,1749684639640,-160.0,0.000227,7]
[365463779,1749684639650,-151.0,0.000227,7]
[365463780,1749684639659,-203.7,0.00022721,6]
[365463781,1749684639669,-800.0,0.00022759,2]
[365463782,1749684639678,-883.16629982,0.000228,2]
[365463783,1749684639688,-151.0,0.000228,7]
[365463784,1749684639697,-558.02629121,0.00022819,2]
[365463786,1749684639706,-500.0,0.00022819,2]
[365463787,1749684639715,-500.0,0.00022819,2]
[365463788,1749684639724,-500.0,0.00022819,2]
[365463789,1749684639733,-500.0,0.00022819,2]
[365463790,1749684639743,-501.60046574,0.00022819,2]
[365463791,1749684639752,-163.5396541,0.00022819,2]
[365463792,1749684639761,-500.0,0.00022819,2]
[365463793,1749684639771,-503.13665459,0.00022819,2]
[365463794,1749684639781,-505.25960172,0.00022819,2]
[365463795,1749684639790,-644.67879016,0.00022819,2]
[365463796,1749684639800,-500.0,0.00022819,2]
[365463798,1749684639809,-500.0,0.00022819,2]
[365463799,1749684639819,-500.0,0.00022819,2]
[365463800,1749684639828,-3520.71523769,0.00022831,8]
[365463801,1749684639838,-600.0,0.00022848,2]
[365463803,1749684639847,-203.7,0.00022849,6]
[365463804,1749684639856,-534.74,0.0002286,3]
[365463805,1749684639870,-3000.0,0.000229,2]
[365463806,1749684639880,-3000.0,0.0002291,2]
[365463807,1749684639889,-537.92762173,0.0002291,2]
[365463808,1749684639899,-546.6,0.00022913,4]
[365463809,1749684639910,-665.35,0.00022913,4]
[365463810,1749684639919,-460.0,0.00022913,4]
[365463811,1749684639928,-1177.89,0.00022913,4]
[365463812,1749684639937,-922.53,0.00022913,4]
[365463813,1749684639948,-508.57,0.00022913,4]
[365463815,1749684639958,-622.58,0.00022913,4]
[365463817,1749684639968,-489.91,0.00022916,4]
[365463827,1749684640083,-460.0,0.00022916,4]
[365463829,1749684640094,-460.0,0.00022916,4]
[365463831,1749684640104,-460.0,0.00022916,4]
[365463833,1749684640113,-460.0,0.00022916,4]
[365463834,1749684640123,-1135.9,0.00022916,4]
[365463836,1749684640132,-460.0,0.00022916,4]
[365463838,1749684640142,-509.31,0.00022917,2]
[365463840,1749684640151,-915.76,0.00022917,4]
[365463842,1749684640160,-3000.0,0.0002292,2]
[365463843,1749684640169,-3000.0,0.0002293,2]
[365463845,1749684640179,-5000.0,0.00022935,2]
[365463847,1749684640188,-3000.0,0.0002294,2]
[365463849,1749684640198,-21640.33447235,0.00022949,2]
[365463851,1749684640207,-3000.0,0.0002295,2]
[365463852,1749684640216,-3000.0,0.0002296,2]
[365463854,1749684640226,-3000.0,0.0002297,2]
[365463856,1749684640235,-500.0,0.00022973,2]
[365463858,1749684640244,-500.0,0.00022973,2]
[365463860,1749684640253,-501.67926998,0.00022973,2]
[365463861,1749684640262,-500.0,0.00022973,2]
[365463863,1749684640271,-500.0,0.00022973,2]
[365463865,1749684640281,-500.0,0.00022973,2]
[365463867,1749684640290,-500.0,0.00022973,2]
[365463869,1749684640299,-500.0,0.00022973,2]
[365463870,1749684640308,-600.0,0.00022973,2]
[365463872,1749684640317,-500.0,0.00022973,2]
[365463874,1749684640326,-501.29367668,0.00022973,2]
[365463876,1749684640335,-500.0,0.00022973,2]
[365463878,1749684640344,-500.0,0.00022973,2]
[365463879,1749684640353,-203.7,0.00022977,6]
[365463881,1749684640362,-3000.0,0.0002298,2]